[Event "Early-Titled-Tuesday-Blitz-September-12-2023"]
[Site "Chess.com"]
[Date "2023.09.12"]
[Round "3"]
[White "Rsnr"]
[Black "iwanyu"]
[Result "1-0"]
[WhiteElo "2921"]
[BlackElo "2691"]
[TimeControl "180+1"]
[EndTime "8:28:21 PDT"]
[Termination "Rsnr won on time"]

1. d4 {[%clk 0:03:00]} 1... Nf6 {[%clk 0:02:58.6]} 2. c4 {[%clk 0:02:59.5]} 2...
c5 {[%clk 0:02:55.2]} 3. d5 {[%clk 0:02:59.3]} 3... e6 {[%clk 0:02:55.9]} 4. Nc3
{[%clk 0:02:59.1]} 4... exd5 {[%clk 0:02:56.8]} 5. cxd5 {[%clk 0:02:59.8]} 5...
d6 {[%clk 0:02:57.5]} 6. Nf3 {[%clk 0:02:59.8]} 6... g6 {[%clk 0:02:57.6]} 7.
Bf4 {[%clk 0:03:00.1]} 7... a6 {[%clk 0:02:58.1]} 8. e4 {[%clk 0:02:59.7]} 8...
b5 {[%clk 0:02:57.7]} 9. Qe2 {[%clk 0:02:59.9]} 9... Be7 {[%clk 0:02:57.4]} 10.
Qc2 {[%clk 0:03:00.2]} 10... O-O {[%clk 0:02:55.8]} 11. a4 {[%clk 0:02:59.2]}
11... b4 {[%clk 0:02:54.4]} 12. Nd1 {[%clk 0:02:59.4]} 12... b3 {[%clk
0:02:54.5]} 13. Qb1 {[%clk 0:02:55.6]} 13... Re8 {[%clk 0:02:42.8]} 14. Nd2
{[%clk 0:02:55.2]} 14... Nh5 {[%clk 0:02:20.6]} 15. Be3 {[%clk 0:02:52]} 15...
f5 {[%clk 0:02:20.9]} 16. exf5 {[%clk 0:02:45.8]} 16... Bxf5 {[%clk 0:02:01.1]}
17. Bd3 {[%clk 0:02:45.7]} 17... Bxd3 {[%clk 0:01:59.7]} 18. Qxd3 {[%clk
0:02:46.4]} 18... Nd7 {[%clk 0:02:00.1]} 19. Qxb3 {[%clk 0:02:31]} 19... Rb8
{[%clk 0:01:48.2]} 20. Qc2 {[%clk 0:02:29.8]} 20... Ndf6 {[%clk 0:01:43.8]} 21.
O-O {[%clk 0:02:26]} 21... Nxd5 {[%clk 0:01:31.9]} 22. Qc4 {[%clk 0:02:25.8]}
22... Nf6 {[%clk 0:01:32.2]} 23. Nc3 {[%clk 0:02:26.1]} 23... Rb4 {[%clk
0:01:31.9]} 24. Qa2 {[%clk 0:02:26.5]} 24... Qa8 {[%clk 0:01:32.4]} 25. Rfd1
{[%clk 0:02:13]} 25... Kg7 {[%clk 0:01:22.1]} 26. Nc4 {[%clk 0:02:13]} 26...
Reb8 {[%clk 0:01:12.3]} 27. Nxd5 {[%clk 0:01:57]} 27... Nxd5 {[%clk 0:01:11.3]}
28. Bd2 {[%clk 0:01:57.7]} 28... Rb3 {[%clk 0:01:01.6]} 29. Na5 {[%clk
0:01:57.3]} 29... Rd3 {[%clk 0:00:54.9]} 30. Bh6+ {[%clk 0:01:48.4]} 30... Kxh6
{[%clk 0:00:50]} 31. Rxd3 {[%clk 0:01:49.2]} 31... Nf4 {[%clk 0:00:41.6]} 32.
Rf3 {[%clk 0:01:49.1]} 32... Ne2+ {[%clk 0:00:31.9]} 33. Kf1 {[%clk 0:01:42.4]}
33... Nd4 {[%clk 0:00:31]} 34. Rh3+ {[%clk 0:01:42.5]} 34... Kg7 {[%clk
0:00:30.5]} 35. Nc4 {[%clk 0:01:13]} 35... Qd5 {[%clk 0:00:22.9]} 36. Ne3 {[%clk
0:01:12.4]} 36... Qe4 {[%clk 0:00:19.5]} 37. Re1 {[%clk 0:00:50.6]} 37... Bg5
{[%clk 0:00:08.7]} 38. Qd5 {[%clk 0:00:16.4]} 38... Qd3+ {[%clk 0:00:08.2]} 39.
Kg1 {[%clk 0:00:16.8]} 39... Bxe3 {[%clk 0:00:08.8]} 40. Kh1 {[%clk 0:00:07.9]}
40... Bg5 {[%clk 0:00:01.7]} 41. Qxg5 {[%clk 0:00:05.8]} 41... Nf5 {[%clk
0:00:02.1]} 42. Rxd3 {[%clk 0:00:05.1]} 42... h6 {[%clk 0:00:01.7]} 43. Re7+
{[%clk 0:00:04.1]} 43... Kf8 {[%clk 0:00:01.9]} 44. Qf6+ {[%clk 0:00:04.2]} 1-0

[Event "Early-Titled-Tuesday-Blitz-September-12-2023"]
[Site "Chess.com"]
[Date "2023.09.12"]
[Round "3"]
[White "jeetjain"]
[Black "Arystanner"]
[Result "1/2-1/2"]
[WhiteElo "2577"]
[BlackElo "2836"]
[TimeControl "180+1"]
[EndTime "8:28:21 PDT"]
[Termination "Game drawn by agreement"]

1. Nf3 {[%clk 0:02:27]} 1... d5 {[%clk 0:02:55.7]} 2. b3 {[%clk 0:02:25.9]} 2...
Nf6 {[%clk 0:02:55.1]} 3. Bb2 {[%clk 0:02:26.2]} 3... Bf5 {[%clk 0:02:55.2]} 4.
e3 {[%clk 0:02:26]} 4... e6 {[%clk 0:02:55.6]} 5. d4 {[%clk 0:02:26.3]} 5... h6
{[%clk 0:02:56]} 6. Bd3 {[%clk 0:02:26.7]} 6... Bxd3 {[%clk 0:02:55.8]} 7. Qxd3
{[%clk 0:02:26.9]} 7... Bd6 {[%clk 0:02:56.4]} 8. c4 {[%clk 0:02:26.8]} 8... c6
{[%clk 0:02:52.3]} 9. O-O {[%clk 0:02:26.6]} 9... Nbd7 {[%clk 0:02:52.6]} 10.
Nc3 {[%clk 0:02:25.4]} 10... O-O {[%clk 0:02:46.8]} 11. e4 {[%clk 0:02:25.6]}
11... dxe4 {[%clk 0:02:47.7]} 12. Nxe4 {[%clk 0:02:26.3]} 12... Nxe4 {[%clk
0:02:48.6]} 13. Qxe4 {[%clk 0:02:27.2]} 13... Qc7 {[%clk 0:02:48.3]} 14. Rad1
{[%clk 0:02:23.5]} 14... Rfe8 {[%clk 0:02:46.8]} 15. Rfe1 {[%clk 0:02:23]} 15...
Rad8 {[%clk 0:02:45.4]} 16. a3 {[%clk 0:02:20.2]} 16... a5 {[%clk 0:02:40.9]}
17. Qc2 {[%clk 0:02:16.3]} 17... c5 {[%clk 0:02:28]} 18. d5 {[%clk 0:02:11.3]}
18... exd5 {[%clk 0:02:28.2]} 19. Rxe8+ {[%clk 0:02:08.6]} 19... Rxe8 {[%clk
0:02:28.5]} 20. Rxd5 {[%clk 0:02:08.3]} 20... Bf8 {[%clk 0:02:23]} 21. h3 {[%clk
0:01:54.5]} 21... Nb6 {[%clk 0:02:22.9]} 22. Rd1 {[%clk 0:01:53.5]} 22... Qf4
{[%clk 0:02:10.9]} 23. a4 {[%clk 0:01:51.4]} 23... Nc8 {[%clk 0:02:09.3]} 24.
Qd2 {[%clk 0:01:49]} 24... Qxd2 {[%clk 0:02:03.5]} 25. Rxd2 {[%clk 0:01:49.9]}
25... Nd6 {[%clk 0:02:03.8]} 26. Ne5 {[%clk 0:01:41.6]} 26... Rd8 {[%clk
0:01:40.7]} 27. f3 {[%clk 0:01:35.2]} 27... h5 {[%clk 0:01:39.9]} 28. Rd5 {[%clk
0:01:17.6]} 28... b6 {[%clk 0:01:23]} 29. Nc6 {[%clk 0:01:03.6]} 29... Rc8
{[%clk 0:01:23.2]} 30. Na7 {[%clk 0:01:03.3]} 30... Re8 {[%clk 0:01:23.2]} 31.
Kf2 {[%clk 0:00:59]} 31... g6 {[%clk 0:01:19.5]} 32. Nb5 {[%clk 0:00:57.5]}
32... Nxb5 {[%clk 0:01:07.5]} 33. axb5 {[%clk 0:00:49.3]} 33... Ra8 {[%clk
0:00:40.7]} 34. Be5 {[%clk 0:00:37.7]} 34... Bg7 {[%clk 0:00:32.9]} 35. Bxg7
{[%clk 0:00:30.7]} 35... Kxg7 {[%clk 0:00:33.8]} 36. Rd6 {[%clk 0:00:31.2]}
36... a4 {[%clk 0:00:34.3]} 37. bxa4 {[%clk 0:00:30.9]} 37... Rxa4 {[%clk
0:00:35.2]} 38. Rxb6 {[%clk 0:00:31.1]} 38... Rxc4 {[%clk 0:00:36]} 39. Rc6
{[%clk 0:00:29.2]} 39... Rc2+ {[%clk 0:00:36.4]} 40. Kg3 {[%clk 0:00:28.1]}
40... g5 {[%clk 0:00:27.5]} 41. h4 {[%clk 0:00:24.9]} 41... gxh4+ {[%clk
0:00:20.5]} 42. Kxh4 {[%clk 0:00:25.8]} 42... Rxg2 {[%clk 0:00:20.6]} 43. Kxh5
{[%clk 0:00:25.5]} 43... Rc2 {[%clk 0:00:16.8]} 44. b6 {[%clk 0:00:21.4]} 44...
c4 {[%clk 0:00:17.3]} 45. Kg5 {[%clk 0:00:19]} 45... Rb2 {[%clk 0:00:17.2]} 46.
Rxc4 {[%clk 0:00:18.1]} 46... Rb5+ {[%clk 0:00:16.9]} 47. Kf4 {[%clk 0:00:18]}
47... Rxb6 {[%clk 0:00:17.8]} 1/2-1/2

[Event "Early-Titled-Tuesday-Blitz-September-12-2023"]
[Site "Chess.com"]
[Date "2023.09.12"]
[Round "3"]
[White "falzehope0"]
[Black "ferrufino64"]
[Result "0-1"]
[WhiteElo "2435"]
[BlackElo "2271"]
[TimeControl "180+1"]
[EndTime "8:28:21 PDT"]
[Termination "ferrufino64 won by resignation"]

1. d4 {[%clk 0:03:00.9]} 1... d5 {[%clk 0:02:56.5]} 2. e3 {[%clk 0:03:01.2]}
2... Nf6 {[%clk 0:02:54.8]} 3. Bd3 {[%clk 0:03:00.3]} 3... Nbd7 {[%clk
0:02:52.5]} 4. f4 {[%clk 0:02:57]} 4... c5 {[%clk 0:02:50.1]} 5. c3 {[%clk
0:02:56.9]} 5... e6 {[%clk 0:02:47.9]} 6. Nf3 {[%clk 0:02:57.2]} 6... Bd6 {[%clk
0:02:46]} 7. O-O {[%clk 0:02:56.6]} 7... b6 {[%clk 0:02:44.6]} 8. Ne5 {[%clk
0:02:54.2]} 8... Bb7 {[%clk 0:02:44.6]} 9. Nd2 {[%clk 0:02:52.9]} 9... Ne4
{[%clk 0:02:44.4]} 10. Nxe4 {[%clk 0:02:45.2]} 10... dxe4 {[%clk 0:02:44.4]} 11.
Bb5 {[%clk 0:02:44.7]} 11... Bxe5 {[%clk 0:02:42.4]} 12. fxe5 {[%clk 0:02:41.8]}
12... cxd4 {[%clk 0:02:38.1]} 13. Qxd4 {[%clk 0:02:37.3]} 13... Rc8 {[%clk
0:02:12.6]} 14. Bxd7+ {[%clk 0:02:35.2]} 14... Qxd7 {[%clk 0:02:12.4]} 15. Qxd7+
{[%clk 0:02:34.9]} 15... Kxd7 {[%clk 0:02:13.3]} 16. Rxf7+ {[%clk 0:02:33.9]}
16... Kc6 {[%clk 0:02:13.9]} 17. Rxg7 {[%clk 0:02:30.1]} 17... Rcd8 {[%clk
0:02:10]} 18. Rf7 {[%clk 0:02:25.5]} 18... Ba6 {[%clk 0:02:08.6]} 19. g4 {[%clk
0:02:03.8]} 19... h5 {[%clk 0:02:01]} 20. g5 {[%clk 0:02:01.9]} 20... Rd1+
{[%clk 0:01:54.4]} 21. Kg2 {[%clk 0:02:00]} 21... h4 {[%clk 0:01:52.4]} 22. h3
{[%clk 0:01:55.4]} 22... Rg8 {[%clk 0:01:50.2]} 23. b3 {[%clk 0:01:26]} 23...
Rxg5+ {[%clk 0:01:50.1]} 24. Kh2 {[%clk 0:01:25.2]} 24... Rgg1 {[%clk
0:01:46.3]} 25. Bb2 {[%clk 0:01:15.9]} 25... Rxa1 {[%clk 0:01:40.6]} 26. Bxa1
{[%clk 0:01:14.4]} 26... Rxa1 {[%clk 0:01:41.5]} 27. Rf4 {[%clk 0:01:08.6]}
27... Rxa2+ {[%clk 0:01:37.3]} 28. Kg1 {[%clk 0:01:08.3]} 28... Ra3 {[%clk
0:01:34.8]} 29. Rxe4 {[%clk 0:01:05.1]} 29... Rxb3 {[%clk 0:01:35.2]} 30. Kf2
{[%clk 0:01:05.3]} 30... Rxc3 {[%clk 0:01:35.2]} 31. Rxh4 {[%clk 0:01:05.2]}
31... Bd3 {[%clk 0:01:31.3]} 32. Rd4 {[%clk 0:00:57]} 32... a5 {[%clk
0:01:23.1]} 33. Rd6+ {[%clk 0:00:56.6]} 33... Kc5 {[%clk 0:01:21.9]} 34. Rxe6
{[%clk 0:00:56.8]} 34... a4 {[%clk 0:01:22.1]} 35. Re8 {[%clk 0:00:54]} 35...
Kd5 {[%clk 0:01:16.4]} 36. h4 {[%clk 0:00:49.7]} 36... Bc4 {[%clk 0:01:17.3]}
37. h5 {[%clk 0:00:47.2]} 37... a3 {[%clk 0:01:15.3]} 38. h6 {[%clk 0:00:47.2]}
38... a2 {[%clk 0:01:09.2]} 39. Ra8 {[%clk 0:00:44.8]} 39... Rc2+ {[%clk
0:01:05.1]} 40. Kg3 {[%clk 0:00:44.3]} 40... Bd3 {[%clk 0:01:04.8]} 41. Ra3
{[%clk 0:00:39]} 41... Bh7 {[%clk 0:01:03.9]} 42. Kf4 {[%clk 0:00:38.6]} 42...
Ke6 {[%clk 0:01:02.4]} 43. Ra6 {[%clk 0:00:37.4]} 43... Rb2 {[%clk 0:01:01.1]}
44. e4 {[%clk 0:00:31.4]} 44... Rf2+ {[%clk 0:00:58.9]} 45. Ke3 {[%clk
0:00:31.7]} 45... Rb2 {[%clk 0:00:59.8]} 46. Kf4 {[%clk 0:00:31.8]} 46... Bg6
{[%clk 0:00:55.6]} 47. Kg5 {[%clk 0:00:28.3]} 47... Bxe4 {[%clk 0:00:55.6]} 48.
Ra7 {[%clk 0:00:23.7]} 48... Kxe5 {[%clk 0:00:54.8]} 49. Re7+ {[%clk 0:00:21.2]}
49... Kd4 {[%clk 0:00:55]} 50. Ra7 {[%clk 0:00:15.4]} 50... b5 {[%clk
0:00:52.6]} 51. Kf4 {[%clk 0:00:15.6]} 51... Bd3 {[%clk 0:00:51.1]} 52. Rd7+
{[%clk 0:00:14.5]} 52... Kc4 {[%clk 0:00:49.6]} 53. Rc7+ {[%clk 0:00:13.5]}
53... Kb3 {[%clk 0:00:47.3]} 54. Ra7 {[%clk 0:00:12.7]} 54... Rh2 {[%clk
0:00:46]} 55. Kg3 {[%clk 0:00:11.4]} 55... Rxh6 {[%clk 0:00:45.4]} 56. Kf2
{[%clk 0:00:11.6]} 56... Kb2 {[%clk 0:00:45.2]} 57. Kg2 {[%clk 0:00:11.8]} 57...
a1=Q {[%clk 0:00:44.4]} 58. Rxa1 {[%clk 0:00:10.8]} 58... Kxa1 {[%clk
0:00:44.5]} 59. Kg3 {[%clk 0:00:10.7]} 59... Rf6 {[%clk 0:00:44.6]} 60. Kg2
{[%clk 0:00:10.7]} 60... Rf5 {[%clk 0:00:45.3]} 61. Kg3 {[%clk 0:00:10.7]} 61...
b4 {[%clk 0:00:46.2]} 62. Kg4 {[%clk 0:00:10.9]} 62... b3 {[%clk 0:00:47.1]} 63.
Kg3 {[%clk 0:00:10.5]} 63... b2 {[%clk 0:00:48]} 64. Kg2 {[%clk 0:00:11]} 64...
b1=Q {[%clk 0:00:48.9]} 65. Kg3 {[%clk 0:00:11.6]} 65... Qg1+ {[%clk 0:00:48.9]}
66. Kh4 {[%clk 0:00:11.6]} 66... Qg5+ {[%clk 0:00:48]} 67. Kh3 {[%clk
0:00:11.5]} 67... Rf3+ {[%clk 0:00:48.6]} 68. Kh2 {[%clk 0:00:11.4]} 68... Qg3+
{[%clk 0:00:48.9]} 0-1

[Event "Early-Titled-Tuesday-Blitz-September-12-2023"]
[Site "Chess.com"]
[Date "2023.09.12"]
[Round "3"]
[White "SchmakAttack"]
[Black "DenLaz"]
[Result "0-1"]
[WhiteElo "2776"]
[BlackElo "3074"]
[TimeControl "180+1"]
[EndTime "8:28:23 PDT"]
[Termination "DenLaz won by resignation"]

1. e4 {[%clk 0:03:00.9]} 1... c5 {[%clk 0:02:58.6]} 2. Nf3 {[%clk 0:03:00.3]}
2... e6 {[%clk 0:02:58.9]} 3. c3 {[%clk 0:02:56.5]} 3... d5 {[%clk 0:02:57.8]}
4. e5 {[%clk 0:02:54.9]} 4... d4 {[%clk 0:02:56.9]} 5. cxd4 {[%clk 0:02:50.1]}
5... cxd4 {[%clk 0:02:56.7]} 6. d3 {[%clk 0:02:46]} 6... Nc6 {[%clk 0:02:54.7]}
7. g3 {[%clk 0:02:45.4]} 7... Nxe5 {[%clk 0:02:49.7]} 8. Nxe5 {[%clk 0:02:27.9]}
8... Qa5+ {[%clk 0:02:49.1]} 9. Nd2 {[%clk 0:02:28.5]} 9... Qxe5+ {[%clk
0:02:48.6]} 10. Be2 {[%clk 0:02:29.1]} 10... Nf6 {[%clk 0:02:44.4]} 11. O-O
{[%clk 0:02:27.5]} 11... Be7 {[%clk 0:02:43.2]} 12. Nc4 {[%clk 0:02:20.6]} 12...
Qc5 {[%clk 0:02:22.1]} 13. b4 {[%clk 0:02:11.5]} 13... Qc7 {[%clk 0:02:21.3]}
14. Bf4 {[%clk 0:02:05.7]} 14... Qd8 {[%clk 0:02:20.6]} 15. Be5 {[%clk
0:01:52.2]} 15... O-O {[%clk 0:02:19.3]} 16. b5 {[%clk 0:01:51.7]} 16... Nd5
{[%clk 0:02:03.9]} 17. Bxd4 {[%clk 0:01:46.6]} 17... Nf4 {[%clk 0:02:01]} 18.
Be3 {[%clk 0:01:29.2]} 18... Nxe2+ {[%clk 0:01:59.9]} 19. Qxe2 {[%clk
0:01:30.1]} 19... Qd5 {[%clk 0:01:59.7]} 20. a4 {[%clk 0:01:13.7]} 20... b6
{[%clk 0:01:59.1]} 21. a5 {[%clk 0:01:02.3]} 21... Bb7 {[%clk 0:01:57.3]} 22. f3
{[%clk 0:01:02.9]} 22... Qxb5 {[%clk 0:01:40.1]} 23. axb6 {[%clk 0:01:02.6]}
23... axb6 {[%clk 0:01:39.7]} 24. Rab1 {[%clk 0:01:03]} 24... Qc6 {[%clk
0:01:22.9]} 25. Rxb6 {[%clk 0:01:02]} 25... Qc7 {[%clk 0:01:22.6]} 26. Rfb1
{[%clk 0:00:37.2]} 26... Bd5 {[%clk 0:01:21]} 27. Kg2 {[%clk 0:00:25.3]} 27...
h6 {[%clk 0:01:18.6]} 28. Bd4 {[%clk 0:00:24.8]} 28... Rfc8 {[%clk 0:01:12.5]}
29. Be5 {[%clk 0:00:17.1]} 29... Qd7 {[%clk 0:01:07.8]} 30. R6b2 {[%clk
0:00:15.7]} 30... Bxc4 {[%clk 0:00:56.7]} 31. dxc4 {[%clk 0:00:16.6]} 31... Qc6
{[%clk 0:00:56.2]} 32. Rc2 {[%clk 0:00:14.2]} 32... Bc5 {[%clk 0:00:54.4]} 33.
g4 {[%clk 0:00:10.7]} 33... Rd8 {[%clk 0:00:48.1]} 34. h4 {[%clk 0:00:10.5]}
34... Ra3 {[%clk 0:00:44.8]} 35. Rd1 {[%clk 0:00:08.3]} 35... Rda8 {[%clk
0:00:42.2]} 36. Rcd2 {[%clk 0:00:04.5]} 36... Be7 {[%clk 0:00:38.7]} 37. Rd3
{[%clk 0:00:03.9]} 37... Rxd3 {[%clk 0:00:33.7]} 38. Rxd3 {[%clk 0:00:04.8]}
38... Bxh4 {[%clk 0:00:33.2]} 39. Rd2 {[%clk 0:00:03.8]} 39... Bg5 {[%clk
0:00:32.1]} 40. Rc2 {[%clk 0:00:04.1]} 40... Be7 {[%clk 0:00:25.4]} 41. Qe4
{[%clk 0:00:04.1]} 41... Qxe4 {[%clk 0:00:22.4]} 42. fxe4 {[%clk 0:00:05]} 42...
Bc5 {[%clk 0:00:22.9]} 43. Rd2 {[%clk 0:00:05]} 43... Ra4 {[%clk 0:00:19.3]} 44.
Rc2 {[%clk 0:00:05.6]} 44... f6 {[%clk 0:00:18.3]} 45. Bg3 {[%clk 0:00:03.9]}
45... Kf7 {[%clk 0:00:18.8]} 46. Bf2 {[%clk 0:00:03.8]} 46... Bxf2 {[%clk
0:00:17.3]} 47. Kxf2 {[%clk 0:00:04.7]} 47... Ke7 {[%clk 0:00:18]} 48. Ke3
{[%clk 0:00:05.3]} 48... Kd6 {[%clk 0:00:18.1]} 49. Kd4 {[%clk 0:00:05.5]} 49...
e5+ {[%clk 0:00:17.9]} 50. Kc3 {[%clk 0:00:06.1]} 50... Kc5 {[%clk 0:00:18.1]}
51. Ra2 {[%clk 0:00:04.9]} 51... Rxa2 {[%clk 0:00:18.1]} 52. Kd3 {[%clk
0:00:05.6]} 52... Ra3+ {[%clk 0:00:18.4]} 0-1

[Event "Early-Titled-Tuesday-Blitz-September-12-2023"]
[Site "Chess.com"]
[Date "2023.09.12"]
[Round "3"]
[White "FredddieCroderg"]
[Black "KingCyber19"]
[Result "1-0"]
[WhiteElo "2285"]
[BlackElo "2484"]
[TimeControl "180+1"]
[EndTime "8:28:23 PDT"]
[Termination "FredddieCroderg won by resignation"]

1. e4 {[%clk 0:03:00.9]} 1... e5 {[%clk 0:03:00]} 2. Nf3 {[%clk 0:02:59.6]} 2...
Nc6 {[%clk 0:03:00.3]} 3. d4 {[%clk 0:03:00.1]} 3... exd4 {[%clk 0:02:59.9]} 4.
Bc4 {[%clk 0:03:00.7]} 4... Nf6 {[%clk 0:03:00.1]} 5. O-O {[%clk 0:02:53.8]}
5... Nxe4 {[%clk 0:02:57.6]} 6. Re1 {[%clk 0:02:51]} 6... d5 {[%clk 0:02:55.2]}
7. Bxd5 {[%clk 0:02:51.2]} 7... Qxd5 {[%clk 0:02:56.1]} 8. Nc3 {[%clk
0:02:51.4]} 8... Qd7 {[%clk 0:02:56.8]} 9. Nxe4 {[%clk 0:02:49.2]} 9... Be7
{[%clk 0:02:57.1]} 10. Bg5 {[%clk 0:02:36.6]} 10... O-O {[%clk 0:02:56.9]} 11.
Bxe7 {[%clk 0:02:35.8]} 11... Qxe7 {[%clk 0:02:57.8]} 12. Nxd4 {[%clk
0:02:32.1]} 12... Bd7 {[%clk 0:02:57.6]} 13. Nxc6 {[%clk 0:02:19.9]} 13... Bxc6
{[%clk 0:02:57.5]} 14. Ng3 {[%clk 0:02:20.6]} 14... Qb4 {[%clk 0:02:51.6]} 15.
Qc1 {[%clk 0:01:19.1]} 15... Rad8 {[%clk 0:02:38.7]} 16. c3 {[%clk 0:01:15.7]}
16... Qb5 {[%clk 0:02:38.6]} 17. b3 {[%clk 0:01:09.1]} 17... Qd5 {[%clk
0:02:35.9]} 18. f3 {[%clk 0:01:06.1]} 18... Rfe8 {[%clk 0:02:32.9]} 19. Kh1
{[%clk 0:01:03.5]} 19... h5 {[%clk 0:02:13.6]} 20. Qf4 {[%clk 0:01:00.6]} 20...
Rxe1+ {[%clk 0:01:59.2]} 21. Rxe1 {[%clk 0:01:01.5]} 21... Qd2 {[%clk
0:01:58.2]} 22. Qxd2 {[%clk 0:00:50.6]} 22... Rxd2 {[%clk 0:01:59.1]} 23. Nxh5
{[%clk 0:00:43.7]} 23... Rxa2 {[%clk 0:01:59.1]} 24. h4 {[%clk 0:00:33.9]} 24...
a5 {[%clk 0:01:52.6]} 25. Ng3 {[%clk 0:00:28.7]} 25... Rb2 {[%clk 0:01:52.3]}
26. Nf5 {[%clk 0:00:27.5]} 26... Rxb3 {[%clk 0:01:43.6]} 27. Ne7+ {[%clk
0:00:27.9]} 27... Kh7 {[%clk 0:01:42.9]} 28. Nxc6 {[%clk 0:00:28.1]} 28... bxc6
{[%clk 0:01:43.6]} 29. Ra1 {[%clk 0:00:25.5]} 29... Rb5 {[%clk 0:01:38.9]} 30.
Ra4 {[%clk 0:00:24.4]} 30... Kg6 {[%clk 0:01:37.5]} 31. g4 {[%clk 0:00:22.4]}
31... f5 {[%clk 0:01:37]} 32. Kg2 {[%clk 0:00:21.5]} 32... Kf6 {[%clk
0:01:35.5]} 33. Kf2 {[%clk 0:00:20.7]} 33... Ke5 {[%clk 0:01:33.6]} 34. Ke3
{[%clk 0:00:20.6]} 34... Rc5 {[%clk 0:01:31.4]} 35. f4+ {[%clk 0:00:17.4]} 35...
Kd6 {[%clk 0:01:20.2]} 36. Rd4+ {[%clk 0:00:16.4]} 36... Rd5 {[%clk 0:01:20.2]}
37. g5 {[%clk 0:00:14.8]} 37... g6 {[%clk 0:00:10.2]} 38. Ra4 {[%clk 0:00:09.8]}
38... Rc5 {[%clk 0:00:09.6]} 39. c4 {[%clk 0:00:08.4]} 39... Kd7 {[%clk
0:00:05.9]} 40. Kd4 {[%clk 0:00:08.9]} 40... Kd6 {[%clk 0:00:06.4]} 41. Ra1
{[%clk 0:00:09.5]} 41... a4 {[%clk 0:00:02]} 42. Rxa4 {[%clk 0:00:10]} 42... Rb5
{[%clk 0:00:01.3]} 43. cxb5 {[%clk 0:00:09.7]} 43... c5+ {[%clk 0:00:02.2]} 44.
Kc4 {[%clk 0:00:09.5]} 1-0

[Event "Early-Titled-Tuesday-Blitz-September-12-2023"]
[Site "Chess.com"]
[Date "2023.09.12"]
[Round "3"]
[White "FabianoCaruana"]
[Black "tsaruk_maks"]
[Result "1-0"]
[WhiteElo "3066"]
[BlackElo "2762"]
[TimeControl "180+1"]
[EndTime "8:28:25 PDT"]
[Termination "FabianoCaruana won on time"]

1. d4 {[%clk 0:02:48.6]} 1... Nf6 {[%clk 0:02:58.6]} 2. c4 {[%clk 0:02:48.9]}
2... e6 {[%clk 0:02:58.3]} 3. Nc3 {[%clk 0:02:49.6]} 3... d5 {[%clk 0:02:57.2]}
4. Bg5 {[%clk 0:02:48]} 4... Bb4 {[%clk 0:02:53.2]} 5. e3 {[%clk 0:02:47.3]}
5... h6 {[%clk 0:02:47.8]} 6. Bxf6 {[%clk 0:02:46.9]} 6... Qxf6 {[%clk
0:02:47.3]} 7. Qa4+ {[%clk 0:02:46.8]} 7... Nc6 {[%clk 0:02:46.8]} 8. cxd5
{[%clk 0:02:47.3]} 8... exd5 {[%clk 0:02:47]} 9. Nf3 {[%clk 0:02:48]} 9... O-O
{[%clk 0:02:45.2]} 10. Bd3 {[%clk 0:02:48.5]} 10... Bg4 {[%clk 0:02:28.8]} 11.
Be2 {[%clk 0:02:48.7]} 11... Bd7 {[%clk 0:01:58.6]} 12. O-O {[%clk 0:02:43.4]}
12... a5 {[%clk 0:01:53.2]} 13. Nxd5 {[%clk 0:02:36.7]} 13... Qd6 {[%clk
0:01:52]} 14. Nxb4 {[%clk 0:02:20.8]} 14... Nxd4 {[%clk 0:01:51.6]} 15. Qd1
{[%clk 0:02:21.5]} 15... Nxe2+ {[%clk 0:01:51.5]} 16. Qxe2 {[%clk 0:02:22.4]}
16... axb4 {[%clk 0:01:51.9]} 17. Rfd1 {[%clk 0:02:22.5]} 17... Qe7 {[%clk
0:01:51]} 18. b3 {[%clk 0:02:18.1]} 18... c5 {[%clk 0:01:21.9]} 19. Rac1 {[%clk
0:02:17.9]} 19... b6 {[%clk 0:01:21.2]} 20. Ne5 {[%clk 0:02:11.6]} 20... Be6
{[%clk 0:01:12.9]} 21. Nc4 {[%clk 0:02:06.8]} 21... Bxc4 {[%clk 0:01:00.9]} 22.
Rxc4 {[%clk 0:02:06.6]} 22... Rfd8 {[%clk 0:01:01.5]} 23. Rcc1 {[%clk
0:02:05.6]} 23... Rxd1+ {[%clk 0:00:53.8]} 24. Rxd1 {[%clk 0:02:06.5]} 24... Rd8
{[%clk 0:00:53.8]} 25. Re1 {[%clk 0:01:59.8]} 25... Qd7 {[%clk 0:00:49.9]} 26.
Qa6 {[%clk 0:01:26.3]} 26... Qd2 {[%clk 0:00:48.5]} 27. Rf1 {[%clk 0:01:26.5]}
27... Qd6 {[%clk 0:00:22.8]} 28. h3 {[%clk 0:01:21.2]} 28... g6 {[%clk
0:00:22.5]} 29. e4 {[%clk 0:01:20]} 29... h5 {[%clk 0:00:22]} 30. h4 {[%clk
0:01:16.2]} 30... Qc6 {[%clk 0:00:21.9]} 31. Qe2 {[%clk 0:01:11.7]} 31... Rd4
{[%clk 0:00:22.4]} 32. Re1 {[%clk 0:01:11]} 32... Qd7 {[%clk 0:00:18.4]} 33. Qf3
{[%clk 0:01:03.5]} 33... Rd2 {[%clk 0:00:17.5]} 34. e5 {[%clk 0:01:03.7]} 34...
Qe6 {[%clk 0:00:11.1]} 35. Qf4 {[%clk 0:00:54.6]} 35... Rxa2 {[%clk 0:00:07.5]}
36. Rd1 {[%clk 0:00:54.8]} 36... Ra8 {[%clk 0:00:07.3]} 37. Rd6 {[%clk
0:00:46.7]} 37... Qg4 {[%clk 0:00:07.5]} 38. Qxg4 {[%clk 0:00:41.7]} 38... hxg4
{[%clk 0:00:08.4]} 39. Rxb6 {[%clk 0:00:42.1]} 39... Ra3 {[%clk 0:00:09]} 40.
Rc6 {[%clk 0:00:41.6]} 40... Rxb3 {[%clk 0:00:08.9]} 41. Rxc5 {[%clk 0:00:42.1]}
41... g3 {[%clk 0:00:07.5]} 42. fxg3 {[%clk 0:00:41]} 42... Rxg3 {[%clk
0:00:08.4]} 43. Rc4 {[%clk 0:00:39]} 43... b3 {[%clk 0:00:07.7]} 44. Rb4 {[%clk
0:00:36]} 44... Re3 {[%clk 0:00:06.5]} 45. Rb5 {[%clk 0:00:36.3]} 45... Kg7
{[%clk 0:00:05]} 46. Kf2 {[%clk 0:00:36.2]} 46... Rc3 {[%clk 0:00:05.3]} 47. g4
{[%clk 0:00:35]} 47... Rc2+ {[%clk 0:00:03.6]} 48. Kf3 {[%clk 0:00:34.9]} 48...
b2 {[%clk 0:00:04.2]} 49. Rb7 {[%clk 0:00:31.8]} 49... Kf8 {[%clk 0:00:03.5]}
50. Kf4 {[%clk 0:00:32]} 50... Rc4+ {[%clk 0:00:02.1]} 51. Kg5 {[%clk
0:00:32.3]} 51... Rc2 {[%clk 0:00:02.8]} 52. e6 {[%clk 0:00:31.2]} 52... fxe6
{[%clk 0:00:02]} 53. Kxg6 {[%clk 0:00:31.8]} 53... Ke8 {[%clk 0:00:02.2]} 54. h5
{[%clk 0:00:31.8]} 54... e5 {[%clk 0:00:01.8]} 55. h6 {[%clk 0:00:31.8]} 55...
e4 {[%clk 0:00:01.5]} 56. h7 {[%clk 0:00:32.3]} 56... Rh2 {[%clk 0:00:02]} 57.
Rxb2 {[%clk 0:00:32.6]} 1-0